[Event "American Cup Women Elimination 2024"]
[Site "Saint Louis"]
[Date "2024.03.17"]
[Round "3.3"]
[White "Yu, Jennifer"]
[Black "Tokhirjonova, Gulrukhbegim"]
[Result "0-1"]
[ECO "D31"]
[WhiteElo "2279"]
[BlackElo "2365"]
[Annotator "TA"]
[PlyCount "124"]
[EventDate "2024.03.11"]
[EventType "k.o."]
[EventCountry "USA"]
[SourceTitle "playchess.com"]
[Source "ChessBase"]
[SourceQuality "1"]
[TimeControl "1500+10"]

{[%evp 14,124,9,0,0,-9,10,0,0,-45,-54,-48,-31,-106,-111,-131,-137,-128,-131,-140,-138,-133,-139,-132,-118,-124,-125,-148,-164,-291,-163,-223,-259,-260,-247,-501,-514,-514,-525,-531,-497,-518,-418,-424,-400,-489,-512,-556,-535,-835,-566,-584,-544,-776,-766,-29962,-499,-468,-418,-412,-400,-620,-421,-420,-277,-275,-283,-275,-280,-291,-280,-280,-278,-409,-397,-379,-371,-370,-353,-470,-460,-637,-577,-1126,-1083,-1829,-1779,-1685,-1612,-2294,-1764,-2279,-2394,-29977,-29977,-29981,-29981,-29983,-29980,-29985,-29979,-29981,-29981,-29982,-29983,-29982,-29983,-29983,-29984,-29988,-29989,-29990,-29991]} 1. d4 {[%emt 0:10:01]} d5 {[%emt 0:10:02]} 2. c4 {[%emt 0:00:01]} e6 {[%emt 0:00:01]} 3. Nc3 {[%emt 0:00:02]} Be7 {[%emt 0:00:02]} 4. cxd5 {[%emt 0:00:01]} exd5 {[%emt 0:00:01]} 5. Bf4 {[%emt 0:00:03]} c6 {[%emt 0:00:05]} 6. e3 {[%emt 0:00:02]} Bf5 {[%emt 0:00:11]} 7. g4 {[%emt 0:00:06]} Be6 {[%emt 0:00:03]} 8. h3 {[%emt 0:00:13]} Nd7 {[%emt 0:00:37][%cal Oh7h5]} 9. Bd3 {[%emt 0:00:34]} g5 {[%emt 0:00:32]} 10. Bg3 {[%emt 0:00:10]} h5 $1 {[%emt 0:00:36] The position is equal.} 11. Bf5 {[%emt 0:06:48]} Bxf5 {[%emt 0:01:10]} 12. gxf5 {[%emt 0:00:01]} Nb6 {[%emt 0:00:24]} 13. e4 {[%emt 0:03:47]} (13. Qd3 $15) 13... dxe4 $17 {[%emt 0:00:27]} 14. Nxe4 {[%emt 0:00:04]} Qd5 {[%emt 0:01:23][%csl LRe4,LRf5]} 15. Qd3 {[%emt 0:01:07]} O-O-O {[%emt 0:00:22][%cal Og8f6]} (15... Qxf5 $2 16. Nd6+ Bxd6 17. Qxf5 $18) 16. Nf3 {[%emt 0:00:35]} Nh6 {[%emt 0:02:17]} (16... Qxf5 $2 17. Nd6+ Rxd6 18. Qxf5+ $18) 17. f6 {[%emt 0:00:54]} Bb4+ {[%emt 0:00:04]} 18. Kf1 {[%emt 0:00:02][%cal Oa2a3]} g4 $36 {[%emt 0:00:10][%mdl 2048] Black is in control.} 19. hxg4 {[%emt 0:00:26]} hxg4 {[%emt 0:00:02]} 20. Nfg5 {[%emt 0:01:08]} Nf5 {[%emt 0:01:09]} (20... Qxd4 21. Qxd4 Rxd4 22. Rh5 $14) 21. Kg2 {[%emt 0:00:01]} (21. Rxh8 {was the only chance.} Rxh8 22. Kg1) 21... Nxg3 {[%emt 0:03:31]} (21... Qxd4 $2 22. Qxd4 (22. Nd6+ Qxd6 23. Bxd6 Nxd6 $18) 22... Nxd4 23. Nxf7 Rxh1 24. Rxh1 $18) (21... Nxd4 22. Rxh8 Rxh8 23. Rd1 $16 (23. Nxf7 Qxf7 24. Qxd4 Qh5 $11)) (21... Rhg8 $142 22. Rh5 Nxg3 (22... Qxd4 $2 23. Qxd4 Rxd4 24. Be5 $18) (22... Nxd4 23. a3 $16) 23. Kxg3 Nc4 (23... Qxd4 24. Qxd4 Rxd4 25. Rah1 $11)) 22. Qxg3 {[%emt 0:00:13] [#]} (22. Rxh8 {was worth a try.} Rxh8 23. Qxg3) 22... Rhg8 $1 $19 {[%emt 0:00:33]} (22... Qxd4 23. Rad1 (23. Qxg4+ Qd7 $18) 23... Qc4 24. Rxh8 (24. Qxg4+ Kb8 $18) 24... Rxh8 25. a3 $18 (25. Qxg4+ Kb8 $18)) 23. Qxg4+ {[%emt 0:01:17]} Kb8 {[%emt 0:00:05]} 24. Rad1 {[%emt 0:00:52] [#] Prevents Bd2.} (24. Rh5) 24... Rxg5 $1 {[%emt 0:01:07][%mdl 512]} 25. Qxg5 {[%emt 0:00:01]} Qxe4+ {[%emt 0:00:01]} 26. Kg1 {[%emt 0:00:20]} Bd6 {[%emt 0:00:38]} (26... Rxd4 27. Rxd4 Qxd4 28. Qg3+ Kc8 29. Rh8+ Kd7 30. Qh3+ Kc7 31. Rh7 $11) 27. Rh4 {[%emt 0:00:19]} Qf3 {[%emt 0:01:00]} 28. Qg4 {[%emt 0:00:04]} Qxf6 {[%emt 0:00:09]} 29. Rd3 {[%emt 0:00:16]} Nd5 {[%emt 0:00:38]} 30. Rf3 {[%emt 0:00:21]} Qe7 {[%emt 0:00:03]} 31. Rh6 {[%emt 0:00:06]} Qe1+ {[%emt 0:00:54]} 32. Kg2 {[%emt 0:00:01]} Qe2 {[%emt 0:00:08]} 33. Qg5 {[%emt 0:00:19][%cal Rg5d8] Inhibits Ne3+.} f6 {[%emt 0:01:06]} 34. Qg7 {[%emt 0:00:10]} Qe6 {[%emt 0:00:24]} (34... Qe4 $142 35. Rh8 Nf4+ 36. Kg1 Qb1+ 37. Kh2 Ng6+ 38. Kg2 Rxh8 39. Qxh8+ Nxh8 40. Rxf6 Qe4+ 41. Kf1 Qd3+ (41... Qxd4 42. Rxd6 Qxd6 43. Kg2 Ng6 44. Kf3 Qf4+ 45. Ke2 Qe4+ 46. Kd2 Nf4 47. b3 Qd3+ 48. Kc1 Qe2 49. Kb1 Nd3 50. a4 Qb2#) 42. Kg2 Qxd4 (42... Qe4+ $2 43. Kf1 $19) 43. Rxd6 Qxd6 44. Kf3 Qd5+ 45. Kg3 Qxa2 46. b4 Ng6 47. Kf3 Qe6 48. b5 cxb5 49. Kg3 Qe4 50. f3 Qh4+ 51. Kg2 Nf4+ 52. Kg1 Qg3+ 53. Kf1 Qxf3+ 54. Kg1 Qg2#) 35. Rh8 {[%emt 0:00:13]} Rxh8 {[%emt 0:00:16]} 36. Qxh8+ {[%emt 0:00:01]} Kc7 {[%emt 0:00:01] ( -> ...Qg4+)} 37. Qg7+ {[%emt 0:00:01]} (37. Qh7+ $142 Be7 38. Qg6) 37... Be7 {[%emt 0:00:13]} 38. Qg3+ {[%emt 0:00:03]} Kc8 {[%emt 0:00:15]} 39. Qh3 {[%emt 0:00:06]} Qxh3+ {[%emt 0:00:10]} 40. Kxh3 {[%emt 0:00:01]} Kd7 {[%emt 0:00:02]} 41. Kg4 {[%emt 0:00:06]} Ke6 {[%emt 0:00:01]} 42. Rh3 {[%emt 0:00:19]} b5 {[%emt 0:00:15]} 43. a3 {[%emt 0:00:19]} (43. Kf3 $142) 43... a5 {[%emt 0:00:04]} 44. Rh1 {[%emt 0:00:03]} f5+ {[%emt 0:00:12]} 45. Kf3 {[%emt 0:00:01]} Bf6 {[%emt 0:00:01]} 46. Rd1 {[%emt 0:00:18]} a4 {[%emt 0:00:05]} 47. Ke2 {[%emt 0:00:06]} Nb6 {[%emt 0:00:11] And now ...Nc4 would win.} 48. Kf3 {[%emt 0:00:32]} Nc4 {[%emt 0:00:03]} 49. Re1+ {[%emt 0:00:14]} Kd5 {[%emt 0:00:06]} 50. Kf4 {[%emt 0:00:04]} Bxd4 {[%emt 0:00:03]} 51. Re2 {[%emt 0:00:29]} Nxb2 {[%emt 0:00:10][%cal Ob5b4] Threatens to win with ...b4!} 52. Kxf5 {[%emt 0:00:02]} c5 {[%emt 0:00:05] Hoping for ...b4.} 53. f4 {[%emt 0:00:03]} b4 {[%emt 0:00:03] Black mates.} 54. axb4 {[%emt 0:00:06]} cxb4 {[%emt 0:00:02]} 55. Re8 {[%emt 0:00:01]} a3 {[%emt 0:00:05]} 56. Ra8 {[%emt 0:00:04]} Kc4 {[%emt 0:00:08]} 57. Ke6 {[%emt 0:00:26]} Kb3 {[%emt 0:00:03]} 58. f5 {[%emt 0:00:07]} Na4 {[%emt 0:00:04]} 59. Rd8 {[%emt 0:00:12]} a2 {[%emt 0:00:04]} 60. Rxd4 {[%emt 0:00:10]} a1=Q {[%emt 0:00:03]} ({Stronger than} 60... a1=B 61. Rg4 $11) 61. Rd5 {[%emt 0:00:09]} Kc4 {[%emt 0:00:06]} 62. f6 {[%emt 0:00:27]} Nc5+ {[%emt 0:00:04] Black took control after the opening.   Weighted Error Value: White=0.90/Black=0.48.  Mistake:       	White=6     	Black=1      Inaccurate:     	White=8     	Black=2      OK:         	White=7     	Black=19     Best:        	White=3     	Black=1      Strong:       	---       	Black=2      Brilliant:      	---       	Black=1} 0-1

[Event "American Cup Women Elimination 2024"]
[Site "Saint Louis"]
[Date "2024.03.17"]
[Round "3.4"]
[White "Tokhirjonova, Gulrukhbegim"]
[Black "Yu, Jennifer"]
[Result "1-0"]
[ECO "A07"]
[WhiteElo "2365"]
[BlackElo "2279"]
[Annotator "RC"]
[PlyCount "63"]
[EventDate "2024.03.11"]
[EventType "k.o."]
[EventCountry "USA"]
[SourceTitle "playchess.com"]
[Source "ChessBase"]
[SourceQuality "1"]
[TimeControl "1500+10"]

1. Nf3 {[%emt 0:10:05]} d5 {[%emt 0:10:01]} 2. g3 {[%emt 0:00:06]} g6 {[%emt 0:00:02]} 3. Bg2 {[%emt 0:00:04]} Bg7 {[%emt 0:00:01]} 4. O-O {[%emt 0:00:05]} e5 {[%emt 0:00:02]} 5. d3 {[%emt 0:00:03]} Ne7 {[%emt 0:00:26]} 6. c4 {[%emt 0:00:06]} O-O {[%emt 0:00:51]} 7. e4 {[%emt 0:00:18]} d4 {[%emt 0:00:42]} 8. b4 {[%emt 0:00:04]} c5 {[%emt 0:01:02]} 9. bxc5 {[%emt 0:00:30]} Na6 {[%emt 0:00:57]} 10. Ba3 {[%emt 0:00:12]} Qc7 {[%emt 0:00:04]} 11. Nbd2 {[%emt 0:00:17]} Nxc5 {[%emt 0:00:19]} 12. Nb3 {[%emt 0:00:14]} Ne6 {[%emt 0:00:49]} 13. Rc1 {[%emt 0:00:21]} a5 {[%emt 0:01:14]} 14. c5 {[%emt 0:00:36]} f5 {[%emt 0:03:12]} 15. exf5 {[%emt 0:00:04]} gxf5 {[%emt 0:00:05]} 16. Nbd2 {[%emt 0:00:05]} Nc6 {[%emt 0:00:27]} 17. Re1 {[%emt 0:00:31]} Nb4 {[%emt 0:02:36]} 18. Bxb4 {[%emt 0:00:20]} axb4 {[%emt 0:00:01]} 19. Nc4 {[%emt 0:00:02]} e4 {[%emt 0:00:28]} 20. dxe4 {[%emt 0:00:18]} fxe4 {[%emt 0:00:30]} 21. Rxe4 {[%emt 0:00:02]} Nxc5 {[%emt 0:00:01]} 22. Rh4 {[%emt 0:01:18]} Rxa2 {[%emt 0:00:48]} 23. Ncd2 {[%emt 0:00:16]} b6 {[%emt 0:02:04]} 24. Nxd4 {[%emt 0:01:50]} Qd6 {[%emt 0:01:23]} 25. Nc4 {[%emt 0:01:42]} Qg6 {[%emt 0:00:43]} 26. Ne2 {[%emt 0:03:06]} Nd3 {[%emt 0:00:17]} 27. Bd5+ {[%emt 0:01:03]} Be6 {[%emt 0:00:20]} 28. Bxe6+ {[%emt 0:00:08]} Qxe6 {[%emt 0:00:02]} 29. Qxd3 {[%emt 0:00:04]} Qxe2 {[%emt 0:00:02]} 30. Qxh7+ {[%emt 0:00:07]} Kf7 {[%emt 0:00:01]} 31. Rf4+ {[%emt 0:00:02]} Ke8 {[%emt 0:00:03]} 32. Re4+ {[%emt 0:00:02]} 1-0

[Event "American Cup Women Elimination 2024"]
[Site "Saint Louis"]
[Date "2024.03.18"]
[Round "4.1"]
[White "Tokhirjonova, Gulrukhbegim"]
[Black "Lee, Alice"]
[Result "1-0"]
[ECO "D53"]
[WhiteElo "2365"]
[BlackElo "2356"]
[Annotator "TA"]
[PlyCount "89"]
[EventDate "2024.03.11"]
[EventType "k.o."]
[EventCountry "USA"]
[SourceTitle "playchess.com"]
[Source "ChessBase"]
[SourceQuality "1"]
[TimeControl "900+10"]

{[%evp 11,89,18,22,22,42,30,49,50,45,38,43,15,22,25,8,12,37,18,35,33,81,75,139,89,133,92,145,151,158,0,0,0,50,-4,35,0,0,-18,189,-31,-20,-17,0,0,0,-14,-8,-8,0,0,0,-9,0,-15,5,6,52,52,90,77,81,84,98,98,98,0,83,79,157,0,358,295,568,247,256,249,727,-151,29984,29984]} 1. d4 {[%emt 0:00:08]} d5 {[%emt 0:00:01]} 2. c4 {[%emt 0:00:03]} e6 {[%emt 0:00:02]} 3. Nf3 {[%emt 0:00:04]} Nf6 {[%emt 0:00:02]} 4. Nc3 {[%emt 0:00:03]} Nbd7 {[%emt 0:00:03]} 5. Bg5 {[%emt 0:00:27]} Be7 {[%emt 0:00:03]} 6. e3 {[%emt 0:00:03]} h6 {[%emt 0:00:02]} 7. Bf4 {[%emt 0:00:20]} a6 {[%emt 0:00:33]} 8. Rc1 {[%emt 0:00:15]} O-O {[%emt 0:00:11]} 9. cxd5 {[%emt 0:01:58] Weiß steht etwas besser.} exd5 {[%emt 0:00:02]} 10. Bd3 {[%emt 0:00:13]} c5 {[%emt 0:01:17]} 11. O-O {[%emt 0:00:09]} c4 {[%emt 0:00:43]} 12. Bb1 {[%emt 0:00:06]} b5 {[%emt 0:00:02]} 13. Ne5 {[%emt 0:00:47]} Bb7 {[%emt 0:00:21]} (13... Re8 $5) 14. Bf5 {[%emt 0:02:07]} b4 {[%emt 0:01:09]} 15. Ne2 {[%emt 0:00:22]} Nxe5 {[%emt 0:01:36]} (15... a5 $14 {kam in Betracht.}) 16. dxe5 $16 {[%emt 0:03:54]} Nd7 {[%emt 0:00:01]} (16... Nh5 $142) 17. Nd4 {[%emt 0:00:19]} (17. Ng3 $142) 17... Nc5 {[%emt 0:01:09]} 18. Qg4 {[%emt 0:00:36]} Kh8 {[%emt 0:01:04]} (18... Bg5 $142) 19. Rfd1 {[%emt 0:00:21] Weiß hat aktiveres Spiel.} Bg5 {[%emt 0:01:04]} 20. Nf3 $2 {[%emt 0:02:05]} (20. Bb1 $16) 20... Bxf4 $11 {[%emt 0:00:19]} 21. Qxf4 {[%emt 0:00:02][%cal Ob2b3]} Qe7 {[%emt 0:01:54]} ({Besser ist} 21... a5 $11) 22. Bb1 {[%emt 0:00:20]} (22. b3 $1 $14) 22... Kg8 {[%emt 0:02:00]} 23. h4 {[%emt 0:00:08][%cal Ob2b3]} Rad8 {[%emt 0:00:40]} 24. Nd4 {[%emt 0:00:24]} Rfe8 $2 {[%emt 0:00:28]} (24... Nd7 $1 $11) 25. Nf3 $2 {[%emt 0:01:19]} (25. Nf5 $1 $18 {[%cal Rf5e7]} Qe6 (25... Qxe5 $2 26. Qxe5 Rxe5 27. Rxc4 $18) 26. Qg3) 25... Ne6 {[%emt 0:00:18]} 26. Qg3 {[%emt 0:00:33]} h5 {[%emt 0:00:55]} 27. Nd4 $40 {[%emt 0:00:38][%mdl 128] Schwarz muss sich nun genau verteidigen.} Nxd4 {[%emt 0:00:15]} 28. exd4 {[%emt 0:00:00]} Bc8 {[%emt 0:00:25]} 29. Re1 {[%emt 0:00:18]} Bg4 {[%emt 0:00:41]} 30. Re3 {[%emt 0:00:18]} Rc8 {[%emt 0:01:24]} 31. f3 {[%emt 0:00:15][%cal Bf2f3,Bf3f4,Bf4f5][%mdl 32]} Be6 {[%emt 0:00:02]} 32. f4 {[%emt 0:00:38] Schwarz muss nun f5 beachten.} Bg4 {[%emt 0:00:43] Und jetzt ...Qa7 wäre schön.} (32... Qd7 {mit weiteren Verwicklungen.} 33. Qg5 Bg4 34. f5 f6) 33. f5 {[%emt 0:00:02][%cal Of5f6]} Rc6 {[%emt 0:00:13]} (33... f6 $11 {sieht stärker aus.}) 34. Rce1 {[%emt 0:00:23][%cal Of5f6]} Qf8 {[%emt 0:00:53]} 35. Qf4 {[%emt 0:00:23]} c3 {[%emt 0:00:06]} 36. bxc3 {[%emt 0:00:02]} bxc3 {[%emt 0:00:01] Und ...c2 würde nun gewinnen.} 37. Bc2 {[%emt 0:00:01]} Rb8 {[%emt 0:00:06]} 38. Bb3 {[%emt 0:01:11]} (38. f6 $16 {Droht fxg7 und aus.} Rb2 39. Rc1) 38... c2 {[%emt 0:00:11]} (38... Rxb3 $1 $11 {bleibt in der Remisbreite.} 39. axb3 c2) 39. Rc1 $1 $16 {[%emt 0:00:02]} (39. Bxd5 $2 c1=Q 40. Rxc1 Rxc1+ $19) 39... Qa3 {[%emt 0:00:15]} (39... Qd8 $142) 40. Ree1 $2 {[%emt 0:00:10]} (40. Bxd5 $2 Qxc1+ 41. Kh2 Qxe3 42. Qxe3 c1=Q $19) (40. Rxc2 $2 Rxc2 41. Bxc2 Qc1+ (41... Qxa2 $2 42. e6 $18) 42. Kh2 Qxc2 $19) ({Der einzige Zug:} 40. Rg3 $1 $16) 40... Qa5 $2 {[%emt 0:00:21][%mdl 8192]} (40... Rxb3 $1 $11 {und Schwarz muss sich keine Sorgen machen.} 41. axb3 Qxb3) 41. e6 {[%emt 0:00:04]} (41. Bxc2 $2 Rxc2 (41... Qxa2 $2 42. e6 $18) 42. e6 Rbc8 (42... Rxa2 43. Qxb8+ Kh7 44. exf7) 43. exf7+ Kxf7 $19) 41... Rf8 {[%emt 0:00:10]} (41... Qc7 42. Qxc7 Rxc7) 42. e7 {[%emt 0:00:14]} (42. Bxc2 Rxc2 (42... fxe6 43. Qe3 $11) 43. exf7+ Kh7 $11 (43... Kxf7 44. Re7+ Kxe7 45. Qe5+ Kd8 46. Qd6+ Ke8 47. Qe6+ Kd8 48. Rxc2 $18)) (42. exf7+ $142 Rxf7 43. Re5 (43. Bxc2 Qc7 $11)) 42... Re8 $18 {[%emt 0:00:01] [#]} 43. Qe5 $1 {[%emt 0:00:05]} (43. Bxc2 $2 {geht unter.} Rxc2 (43... Qxa2 44. Bd3 $18) 44. f6 gxf6 (44... Rxa2 $2 45. Qg5 $18) (44... Qxa2 45. Rxc2 Qxc2 46. Re5 $11) 45. Qxf6 Qd2 (45... Rxa2 46. Rf1) 46. Rxc2 Qxe1+ $19) 43... Rc7 $2 {[%emt 0:00:19]} (43... Kh7 44. Rxc2 (44. Bxd5 Rxe7 45. Qxe7 Qxd5 $11) 44... Rxc2 45. Bxc2 f6) 44. Qxd5 $2 {[%emt 0:00:25] [#]} ({Weniger gut wäre} 44. f6 Qb6 $16) ({Weiss kommt nicht vorbei an} 44. Bxd5 $18 Qxe1+ 45. Qxe1 Rcxe7 46. Qa5) 44... Rcxe7 {[%emt 0:00:12]} 45. Qxa5 {[%emt 0:00:08] Gewichteter Fehlerwert: Weiß=0.52/Schwarz=0.64.  Verlustzug:     	---       	Schwarz=3     Gewinn verpasst:   	Weiß=2     	---        Fehler:       	Weiß=6     	Schwarz=9     Ungenau:       	Weiß=3     	Schwarz=2     OK:         	Weiß=11    	Schwarz=8     Bester:       	---       	Schwarz=4     Stark:        	Weiß=2     	---} 1-0

[Event "American Cup Women Elimination 2024"]
[Site "Saint Louis"]
[Date "2024.03.18"]
[Round "4.2"]
[White "Lee, Alice"]
[Black "Tokhirjonova, Gulrukhbegim"]
[Result "1-0"]
[ECO "D12"]
[WhiteElo "2356"]
[BlackElo "2365"]
[Annotator "TA"]
[PlyCount "65"]
[EventDate "2024.03.11"]
[EventType "k.o."]
[EventCountry "USA"]
[SourceTitle "playchess.com"]
[Source "ChessBase"]
[SourceQuality "1"]
[TimeControl "900+10"]

{[%evp 12,65,27,25,22,17,25,15,19,0,25,30,46,-25,-29,-39,-42,-44,89,102,110,81,99,100,108,29,175,145,168,155,256,231,495,506,662,596,675,658,618,493,518,518,509,523,581,587,563,544,541,540,569,461,480,480,29998,29999]} 1. d4 {[%emt 0:00:01]} d5 {[%emt 0:00:10]} 2. c4 {[%emt 0:00:02]} c6 {[%emt 0:00:01]} 3. Nf3 {[%emt 0:00:02]} Nf6 {[%emt 0:00:02]} 4. e3 {[%emt 0:00:01]} Bf5 {[%emt 0:00:41]} 5. Nc3 {[%emt 0:00:02]} e6 {[%emt 0:00:05]} 6. Nh4 {[%emt 0:00:02]} Be4 {[%emt 0:00:10]} 7. f3 {[%emt 0:00:25]} Bg6 {[%emt 0:00:02]} 8. Bd2 {[%emt 0:00:42]} Nbd7 {[%emt 0:00:11]} 9. Nxg6 {[%emt 0:00:52]} hxg6 {[%emt 0:00:02] The position is equal.} 10. Qc2 {[%emt 0:00:01]} Bd6 {[%emt 0:00:31]} 11. O-O-O {[%emt 0:00:31]} Qc7 {[%emt 0:02:41]} 12. e4 {[%emt 0:01:34]} ({White should try} 12. h3 $14) 12... dxe4 $11 {[%emt 0:00:49]} 13. fxe4 {[%emt 0:00:11]} e5 $1 {[%emt 0:00:37]} 14. d5 {[%emt 0:01:26]} a5 {[%emt 0:00:05] [#]} (14... Ng4 $15 {stays ahead.}) 15. Be2 $1 $16 {[%emt 0:00:24]} Nc5 {[%emt 0:00:26]} 16. Be3 {[%emt 0:00:50]} Na6 {[%emt 0:03:51]} 17. Kb1 {[%emt 0:01:52]} Bc5 {[%emt 0:00:22]} 18. Qd2 {[%emt 0:01:49]} ({Better is} 18. Qd3 $16) 18... O-O {[%emt 0:00:18] [#] This move loses the game for Black.} (18... Qb6 $11 {and Black is okay.} 19. Bxc5 Nxc5) 19. h4 $1 $18 {[%emt 0:00:48][%cal Bh2h4,Bh4h5][%mdl 32] Strongly threatening h5.} Qb6 {[%emt 0:01:48]} 20. Bg5 {[%emt 0:01:05]} Nh7 {[%emt 0:01:39]} (20... Bb4 $16) 21. h5 {[%emt 0:01:15] hxg6 would now be deadly.} (21. Na4 $6 Qb4 $18) 21... f6 $2 {[%emt 0:00:57]} (21... Bd4 {was worth a try.}) 22. Na4 {[%emt 0:00:03]} (22. hxg6 Nxg5 23. Rh5 Rfd8 $18) 22... Qb4 {[%emt 0:00:16] [#]} 23. Qc2 {[%emt 0:00:52]} b5 {[%emt 0:01:11]} (23... Nxg5 24. a3) 24. cxb5 {[%emt 0:02:37]} cxb5 {[%emt 0:00:02]} 25. Nxc5 {[%emt 0:00:02]} (25. hxg6 Nxg5 26. Nc3 Bd6 $16) 25... Qxc5 {[%emt 0:00:41]} 26. Qxc5 {[%emt 0:00:12]} (26. hxg6 Qxc2+ (26... Nxg5 $2 27. Qb3 $18) 27. Kxc2 Nxg5 $14) 26... Nxc5 {[%emt 0:00:01][%cal Ba6c5,Bc5e4,Be4g3][%mdl 32]} 27. Be3 {[%emt 0:00:01]} (27. hxg6 Nxg5 28. Rh4 Rfb8 $11 (28... Ncxe4 $2 29. Rdh1 $18)) 27... Nxe4 {[%emt 0:00:06]} 28. hxg6 {[%emt 0:00:02]} (28. Bxb5 Rfb8 29. a4 (29. hxg6 Rxb5 30. gxh7+ Kh8 $15) 29... gxh5 $18) 28... Nhg5 {[%emt 0:00:04]} 29. Rh4 {[%emt 0:00:18]} Ng3 {[%emt 0:01:02] Dodges Rdh1} 30. Bg4 {[%emt 0:00:22]} Rfd8 {[%emt 0:01:05]} 31. d6 {[%emt 0:00:32] Black must now prevent Bxg5.} Ra6 {[%emt 0:00:11]} 32. Bxg5 {[%emt 0:00:13] Be6+ would kill now.} fxg5 {[%emt 0:00:02]} (32... Rdxd6 $18 33. Rc1 Rac6 34. Rxc6 Rxc6) 33. Be6+ {[%emt 0:00:01] Weighted Error Value: White=0.23 (precise) /Black=0.79.  Mistake:       	White=2     	Black=5      Inaccurate:     	---       	Black=1      OK:         	White=9     	Black=3      Best:        	White=3     	Black=2      Strong:       	White=2     	Black=1} 1-0

[Event "American Cup Women Elimination 2024"]
[Site "Saint Louis"]
[Date "2024.03.18"]
[Round "4.3"]
[White "Lee, Alice"]
[Black "Tokhirjonova, Gulrukhbegim"]
[Result "1-0"]
[ECO "D38"]
[WhiteElo "2356"]
[BlackElo "2365"]
[Annotator "TA"]
[PlyCount "87"]
[EventDate "2024.03.11"]
[EventType "k.o."]
[EventCountry "USA"]
[SourceTitle "playchess.com"]
[Source "ChessBase"]
[SourceQuality "1"]
[TimeControl "900+10"]

{[%evp 20,87,41,24,31,15,31,37,39,35,56,21,26,27,27,24,23,24,152,136,150,148,147,154,152,157,144,138,140,138,138,134,148,129,127,128,175,168,267,239,1050,996,29982,5281,5373,5365,5289,5289,3868,3510,29963,29961,29976,29977,29975,29976,29980,29981,29981,29982,29984,29985,29985,29986,29986,29987,29988,29988,29988,29989]} 1. d4 {[%emt 0:00:02]} d5 {[%emt 0:00:06]} 2. c4 {[%emt 0:00:02]} e6 {[%emt 0:00:01]} 3. Nf3 {[%emt 0:00:02]} Nf6 {[%emt 0:00:01]} 4. Nc3 {[%emt 0:00:03]} Bb4 {[%emt 0:00:09]} 5. Bg5 {[%emt 0:00:11]} Nbd7 {[%emt 0:00:31]} 6. e3 {[%emt 0:00:14]} h6 {[%emt 0:00:08]} 7. Bxf6 {[%emt 0:00:07]} Qxf6 {[%emt 0:00:18]} 8. Rc1 {[%emt 0:00:20]} c6 {[%emt 0:00:09]} 9. Bd3 {[%emt 0:00:08]} O-O {[%emt 0:01:25]} 10. O-O {[%emt 0:00:03]} dxc4 {[%emt 0:00:14]} 11. Bxc4 {[%emt 0:00:14]} e5 {[%emt 0:00:35]} 12. a3 {[%emt 0:00:28]} Bxc3 {[%emt 0:00:24]} (12... exd4 {is more complex.} 13. Ne4 Qe7 14. axb4 Qxe4 15. Qxd4 Qe7) 13. bxc3 {[%emt 0:00:03]} e4 {[%emt 0:00:11] White is slightly better.} 14. Nd2 {[%emt 0:00:05]} Qg6 {[%emt 0:00:07]} 15. f4 {[%emt 0:03:37] And now f5 would win.} Nb6 {[%emt 0:00:40]} 16. Bb3 {[%emt 0:00:33]} Re8 {[%emt 0:02:36]} 17. c4 {[%emt 0:00:41][%cal Bc3c4,Bc4c5][%mdl 32]} Bg4 {[%emt 0:00:15]} (17... Bh3 {feels hotter.} 18. Qe2 c5 19. dxc5 Nd7) 18. Qe1 {[%emt 0:01:25]} Rad8 {[%emt 0:00:10] [#] White now steadily converts the win.} (18... c5 $11 {keeps the balance.}) 19. c5 $1 $16 {[%emt 0:00:24]} Nd5 {[%emt 0:01:59]} 20. Nc4 {[%emt 0:00:22]} Bc8 {[%emt 0:01:59]} 21. Nd6 {[%emt 0:00:21]} Re7 {[%emt 0:01:07]} 22. Bxd5 {[%emt 0:02:32]} cxd5 {[%emt 0:00:02]} 23. Qa5 {[%emt 0:00:35] White is more active.} b6 {[%emt 0:00:33] [#]} 24. Nxc8 $1 {[%emt 0:00:09]} (24. cxb6 $2 {perishes.} Qxd6 25. bxa7 Bb7 $19) 24... Rxc8 {[%emt 0:00:07]} 25. cxb6 {[%emt 0:00:02]} Rxc1 {[%emt 0:00:08]} 26. Rxc1 {[%emt 0:00:02]} (26. bxa7 Rxa7 (26... Rxf1+ 27. Kxf1 $11) 27. Qd8+ Kh7 28. Rxc1 Rxa3 29. Qxd5 Rxe3 $17) 26... Qxb6 {[%emt 0:02:06]} 27. Qxd5 {[%emt 0:00:03][%mdl 4096] Endgame. KQR-KQR} Re8 {[%emt 0:00:17] Repels Rc8} (27... Qb7 $16 28. Qc4 Kh7) 28. h3 $18 {[%emt 0:01:03]} Qg6 {[%emt 0:00:37]} (28... Rd8 {might work better.} 29. Qxe4 Qb2) 29. Kh2 {[%emt 0:00:17] Strongly threatening Rc6.} h5 $2 {[%emt 0:00:05]} (29... Qe6 30. Qb5 Rd8) 30. Rc6 {[%emt 0:00:14]} Re6 {[%emt 0:00:40]} 31. f5 {[%emt 0:00:12]} (31. Rc8+ $142 Kh7 32. Qd8 Kh6 33. g4 (33. Qh8+ Qh7 $18) 33... f6 34. f5 Re8 35. Qxe8 (35. fxg6 Rxd8 36. Rxd8 hxg4 $18) 35... Qxe8 36. Rxe8) 31... Qg5 {[%emt 0:01:00]} 32. Rxe6 {[%emt 0:00:03]} fxe6 {[%emt 0:00:03]} 33. Qxe6+ {[%emt 0:00:02] KQ-KQ} Kf8 {[%emt 0:00:05]} 34. Qxe4 {[%emt 0:00:05]} h4 {[%emt 0:00:07]} 35. Qa8+ {[%emt 0:00:05] White mates.} Kf7 {[%emt 0:00:04]} 36. Qxa7+ {[%emt 0:00:03]} Kg8 {[%emt 0:00:07]} 37. Qb8+ {[%emt 0:00:02]} Kf7 {[%emt 0:00:02]} 38. Qe5 {[%emt 0:00:12]} Qd8 {[%emt 0:00:08]} 39. a4 {[%emt 0:00:06][%cal Ba3a4,Ba4a5,Ba5a6][%mdl 32]} Kf8 {[%emt 0:00:39]} 40. a5 {[%emt 0:00:05]} Qa8 {[%emt 0:00:02]} 41. Qd6+ {[%emt 0:00:08]} Kf7 {[%emt 0:00:14]} 42. a6 {[%emt 0:00:03]} Qa7 {[%emt 0:00:07]} 43. Qe6+ {[%emt 0:00:04]} Kf8 {[%emt 0:00:04]} 44. Qc8+ {[%emt 0:00:02] Weighted Error Value: White=0.03 (flawless) /Black=0.58.  Mistake:       	---       	Black=4      Inaccurate:     	White=1     	Black=1      OK:         	White=8     	Black=5      Best:        	White=2     	Black=1      Strong:       	White=1     	---} 1-0